bitfinex/quotes_ETHUSD_20251006
["timestamp","ask_amount","ask_price","bid_price","bid_amount"]
[1759718730407,19.01116556,4519.6,4519.5,55.8999395]
[1759718732034,20.24116556,4519.6,4519.5,55.8999395]
[1759718733721,16.3368671,4519.6,4519.5,55.9094395]
[1759718733924,3.13675809,4519.6,4519.5,55.9094395]
[1759718734108,0.012,4519.9,4519.8,5.24608727]
[1759718734303,0.012,4519.9,4519.8,37.87748727]
[1759718734490,0.012,4519.9,4519.8,38.33478727]
[1759718734690,2.4,4523.5,4519.8,38.33478727]
[1759718734691,14.76,4523.2,4520.8,2.84559787]
[1759718734896,14.76,4523.2,4520.8,52.92887849]
[1759718735209,61.51,4520.9,4520.8,52.92887849]
[1759718735415,61.51,4520.9,4520.8,53.59246097]
[1759718735812,61.00713487,4520.9,4520.8,53.59246097]
[1759718736516,62.23713487,4520.9,4520.8,53.59246097]
[1759718737908,63.46713487,4520.9,4520.8,53.59246097]
[1759718738816,63.91053487,4520.9,4520.8,53.59246097]
[1759718739125,63.46713487,4520.9,4520.8,55.88946097]
[1759718739326,64.69713487,4520.9,4520.8,55.88946097]
[1759718740100,64.69713487,4520.9,4520.8,56.34676097]
[1759718740302,64.69913487,4520.9,4520.8,56.34676097]
[1759718740741,65.92913487,4520.9,4520.8,56.34676097]
[1759718740935,65.92913487,4520.9,4520.8,56.78757687]
[1759718741490,65.92913487,4520.9,4520.8,56.33027687]
[1759718742145,67.15913487,4520.9,4520.8,56.33027687]
[1759718743010,66.49612508,4520.9,4520.8,56.78757687]
[1759718743512,67.06311529,4520.9,4520.8,56.78757687]
[1759718743734,66.4001055,4520.9,4520.8,56.78757687]
[1759718743936,65.89731788,4520.9,4520.8,56.78757687]
[1759718744244,65.23430809,4520.9,4520.8,56.78757687]
[1759718744431,64.68430809,4520.9,4520.8,56.78757687]
[1759718744627,64.0212983,4520.9,4520.8,56.78757687]
[1759718744807,65.2512983,4520.9,4520.8,56.78757687]
[1759718745008,64.58828851,4520.9,4520.8,56.78757687]
[1759718746338,65.81828851,4520.9,4520.8,26.78757687]
[1759718746841,65.81828851,4520.9,4520.8,56.78757687]
[1759718747675,67.04828851,4520.9,4520.8,56.78757687]
[1759718748533,66.38527872,4520.9,4520.8,56.78757687]
[1759718748934,1e-08,4521.3,4521.2,2.84540217]
[1759718749175,1e-08,4521.3,4521.2,7.76540217]
[1759718749334,31.31905322,4521.4,4521.3,35.24535325]
[1759718749541,31.31905322,4521.4,4521.3,52.26535325]
[1759718749780,30.65610643,4521.4,4521.3,52.72265325]
[1759718750077,29.99315964,4521.4,4521.3,52.72265325]
[1759718750438,9.26525957,4521.4,4521.3,52.72265325]
[1759718751063,8.60231278,4521.4,4521.3,52.72265325]
[1759718751267,7.93936599,4521.4,4521.3,52.72265325]
[1759718751434,7.93936599,4521.4,4521.3,22.72265325]
[1759718751637,8.5064192,4521.4,4521.3,52.72265325]
[1759718751845,8.00374164,4521.4,4521.3,52.72265325]
[1759718752079,7.34079485,4521.4,4521.3,52.72265325]
[1759718752569,6.67784806,4521.4,4521.3,52.72265325]
[1759718752943,7.24490127,4521.4,4521.3,52.72265325]
[1759718753479,6.58195448,4521.4,4521.3,52.72265325]
[1759718753637,5.91900769,4521.4,4521.3,52.72265325]
[1759718753833,5.91900769,4521.4,4521.3,53.38596283]
[1759718754166,5.2560609,4521.4,4521.3,53.38596283]
[1759718754341,6.4860609,4521.4,4521.3,53.38596283]
[1759718754578,5.82311411,4521.4,4521.3,53.38596283]
[1759718754783,5.16016732,4521.4,4521.3,53.38596283]
[1759718755224,5.16016732,4521.4,4521.3,48.19690958]
[1759718755527,5.60356732,4521.4,4521.3,54.59206283]
[1759718755695,6.83356732,4521.4,4521.3,55.22566283]
[1759718756279,6.83356732,4521.4,4521.3,53.01390958]
[1759718756483,6.83356732,4521.4,4521.3,48.19690958]
[1759718756700,6.83356732,4521.4,4521.3,53.01390958]
[1759718757102,8.06356732,4521.4,4521.3,55.22566283]
[1759718757313,7.62016732,4521.4,4521.3,55.22566283]
[1759718757483,7.62016732,4521.4,4521.3,53.01390958]
[1759718757688,8.06356732,4521.4,4521.3,53.01390958]
[1759718758426,8.85016732,4521.4,4521.3,53.01390958]
[1759718758596,9.29356732,4521.4,4521.3,53.01390958]
[1759718758937,9.29356732,4521.4,4521.3,48.30730958]
[1759718759098,9.29356732,4521.4,4521.3,50.09070958]
[1759718759491,9.29356732,4521.4,4521.3,52.49070958]
[1759718759705,10.52356732,4521.4,4521.3,53.12430958]
[1759718760586,10.52356732,4521.4,4521.3,23.12430958]
[1759718761225,11.75356732,4521.4,4521.3,20.09070958]
[1759718761583,11.75356732,4521.4,4521.3,20.72430958]
[1759718761788,11.75356732,4521.4,4521.3,50.72430958]
[1759718762114,11.75356732,4521.4,4521.3,53.12430958]
[1759718762635,12.98356732,4521.4,4521.3,23.12430958]
[1759718763628,12.98356732,4521.4,4521.3,53.12430958]
[1759718764013,14.21356732,4521.4,4521.3,53.12430958]
[1759718765416,15.44356732,4521.4,4521.3,53.12430958]
[1759718765844,15.44356732,4521.4,4521.3,23.12430958]
[1759718766827,16.67356732,4521.4,4521.3,23.12430958]
[1759718767604,16.67356732,4521.4,4521.3,18.30730958]
[1759718767830,16.67356732,4521.4,4521.3,24.37101658]
[1759718768029,17.41764405,4521.4,4521.3,19.86092558]
[1759718768231,18.64764405,4521.4,4521.3,22.21091858]
[1759718768432,18.64764405,4521.4,4521.3,22.84451858]
[1759718768747,17.90356732,4521.4,4521.3,22.84451858]
[1759718768965,17.46016732,4521.4,4521.3,20.82530958]
[1759718769117,17.46016732,4521.4,4521.3,23.69210081]
[1759718769432,16.95737908,4521.4,4521.3,23.69210081]
[1759718769614,18.18737908,4521.4,4521.3,53.69210081]
[1759718770612,18.18737908,4521.4,4521.3,53.96839166]
[1759718771008,19.41737908,4521.4,4521.3,53.96839166]
[1759718771634,18.86737908,4521.4,4521.3,53.69210081]
[1759718772548,20.09737908,4521.4,4521.3,53.69210081]
[1759718772748,86.911368,4522.2,4521.5,0.6336]
[1759718772948,86.911368,4522.2,4522.1,5.24496197]
[1759718773124,86.911368,4522.2,4522.1,36.59669897]
[1759718773547,86.911368,4522.2,4522.1,51.09669897]
[1759718773918,88.141368,4522.2,4522.1,51.09669897]
[1759718775440,89.371368,4522.2,4522.1,51.09669897]
[1759718776649,89.373368,4522.2,4522.1,51.09669897]
[1759718776836,90.603368,4522.2,4522.1,52.85184922]
[1759718777427,90.10074919,4522.2,4522.1,52.85184922]
[1759718778343,91.33074919,4522.2,4522.1,52.85184922]
[1759718778954,91.33074919,4522.2,4522.1,53.51509721]
[1759718779122,91.33074919,4522.2,4522.1,53.62549721]
[1759718779525,92.56074919,4522.2,4522.1,53.62549721]
[1759718780152,92.56074919,4522.2,4522.1,53.16209721]
[1759718781056,93.79074919,4522.2,4522.1,53.16209721]
[1759718781358,93.79074919,4522.2,4522.1,53.62449721]
[1759718781549,93.79074919,4522.2,4522.1,44.70874719]
[1759718781550,41.54981694,4522.2,4522.1,44.70874719]
[1759718781744,41.27977264,4522.2,4522.1,44.76414004]
[1759718782057,40.17501471,4522.2,4522.1,44.32213704]
[1759718782265,39.51225978,4522.2,4522.1,44.32213704]
[1759718782557,40.74225978,4522.2,4522.1,44.32213704]
[1759718782746,40.07950485,4522.2,4522.1,44.32213704]
[1759718782943,40.07950485,4522.2,4522.1,25.72208904]
[1759718783151,39.41674992,4522.2,4522.1,44.32213704]
[1759718783345,38.75399499,4522.2,4522.1,44.32213704]
[1759718783858,39.32124006,4522.2,4522.1,44.32213704]
[1759718784162,38.65848513,4522.2,4522.1,44.32213704]
[1759718784687,25.19765864,4522.2,4522.1,35.49337804]
[1759718784909,14.76,4523.2,4522.6,0.6336]
[1759718785191,43.74638496,4523.7,4523.5,0.6336]
[1759718785483,43.24394749,4523.7,4523.6,52.2612287]
[1759718785680,43.24394749,4523.7,4523.6,52.92424216]
[1759718786045,43.24394749,4523.7,4523.6,53.38664216]
[1759718786677,44.47394749,4523.7,4523.6,53.38664216]
[1759718788162,45.70394749,4523.7,4523.6,53.38664216]
[1759718788562,45.70394749,4523.7,4523.6,52.92424216]
[1759718788785,45.70394749,4523.7,4523.6,53.38664216]
[1759718789482,46.93394749,4523.7,4523.6,53.38664216]
[1759718789683,46.27130235,4523.7,4523.6,53.38664216]
[1759718790063,45.60865721,4523.7,4523.6,53.83651332]
[1759718790364,44.94601207,4523.7,4523.6,23.83651332]
[1759718790554,44.94601207,4523.7,4523.6,53.83651332]
[1759718790753,44.28336693,4523.7,4523.6,53.83651332]
[1759718791084,45.51336693,4523.7,4523.6,53.83651332]
[1759718791256,44.85072179,4523.7,4523.6,53.83651332]
[1759718791456,44.85072179,4523.7,4523.6,53.94691332]
[1759718791655,44.18807665,4523.7,4523.6,53.94691332]
[1759718792202,43.52543151,4523.7,4523.6,53.94691332]
[1759718792409,44.75543151,4523.7,4523.6,23.94691332]
[1759718792783,44.75543151,4523.7,4523.6,53.94691332]
[1759718793120,44.75543151,4523.7,4523.6,54.2499513]
[1759718793810,45.32297366,4523.7,4523.6,54.2499513]
[1759718794193,45.09613804,4523.7,4523.6,54.2499513]
[1759718794400,44.6424668,4523.7,4523.6,54.2499513]
[1759718794596,42.3761106,4523.7,4523.6,54.2499513]
[1759718794801,17.04408859,4523.7,4523.6,50.6412243]
[1759718795003,18.27408859,4523.7,4523.6,50.6412243]
[1759718795199,17.61163074,4523.7,4523.6,50.6412243]
[1759718795610,16.94917289,4523.7,4523.6,50.6412243]
[1759718795949,16.26694004,4523.7,4523.6,50.6412243]
[1759718796294,16.83448219,4523.7,4523.6,50.6412243]
[1759718796618,16.83448219,4523.7,4523.6,50.6214493]
[1759718796823,16.17202434,4523.7,4523.6,50.6214493]
[1759718797197,15.50956649,4523.7,4523.6,50.6214493]
[1759718797592,14.84710864,4523.7,4523.6,50.6214493]
[1759718797912,0.01,4524.9,4523.8,0.6336]
[1759718798118,0.01,4524.9,4523.8,19.14074498]
[1759718798324,0.4391,4524.8,4523.8,21.80707594]
[1759718798488,0.4391,4524.5,4523.8,35.54823796]
[1759718798695,0.4391,4524.5,4523.8,35.98733796]
[1759718798932,0.01,4524.9,4524.7,0.6336]
[1759718799096,0.01,4524.9,4524.8,18.75174943]
[1759718799298,0.01,4524.9,4524.8,16.23574943]
[1759718799497,0.01,4524.9,4524.8,35.54674943]
[1759718799715,0.01,4524.9,4524.8,36.20957538]
[1759718799921,0.01,4524.9,4524.8,31.39857538]
[1759718800136,0.01,4524.9,4524.8,36.20957538]
[1759718800653,1.24,4524.9,4524.8,36.20957538]
[1759718800946,5.2544314,4525.2,4525.1,2.84349591]
[1759718801236,4.59200135,4525.2,4525.1,19.35826507]
[1759718801418,4.59200135,4525.2,4525.1,19.81406507]
[1759718801623,3.9295713,4525.2,4525.1,34.31406507]
[1759718802042,4.49714125,4525.2,4525.1,34.31406507]
[1759718802340,4.48083725,4525.2,4525.1,34.31406507]
[1759718802510,3.8184072,4525.2,4525.1,34.31406507]
[1759718802714,3.8184072,4525.2,4525.1,34.30949607]
[1759718802914,3.15597715,4525.2,4525.1,34.30949607]
[1759718803306,3.7235471,4525.2,4525.1,34.97220342]
[1759718803514,0.5820691,4525.2,4525.1,31.82079542]
[1759718803702,2.46,4526.1,4525.8,2.84315411]
[1759718803921,2.46,4526.1,4525.8,7.75815411]
[1759718804138,2.46,4526.1,4525.8,15.59428411]
[1759718804342,2.46,4526.1,4525.8,16.25697536]
[1759718804544,2.46,4526.1,4525.8,30.75697536]
[1759718804711,1.24,4525.9,4525.8,30.75697536]
[1759718804913,1.24,4525.9,4525.8,30.86737536]
[1759718805846,1.24,4525.9,4525.8,31.47503752]
[1759718806043,2.47,4525.9,4525.8,32.04322409]
[1759718807424,3.7,4525.9,4525.8,32.04322409]
[1759718807626,3.7,4525.9,4525.8,24.20709409]
[1759718807835,3.7,4525.9,4525.8,32.04322409]
[1759718808659,3.7,4525.9,4525.8,23.91580324]
[1759718808860,4.93,4525.9,4525.8,31.75193324]
[1759718809157,4.93,4525.9,4525.8,31.29613324]
[1759718809359,4.26783605,4525.9,4525.8,31.75193324]
[1759718809748,3.6056721,4525.9,4525.8,31.75193324]
[1759718810132,4.17350815,4525.9,4525.8,31.75193324]
[1759718811637,5.40350815,4525.9,4525.8,31.75193324]
[1759718813036,5.40350815,4525.9,4525.8,31.43556193]
[1759718813257,6.63350815,4525.9,4525.8,30.97976193]
[1759718813568,6.63350815,4525.9,4525.8,31.43556193]
[1759718813738,6.63550815,4525.9,4525.8,31.43556193]
[1759718815062,7.86550815,4525.9,4525.8,31.43556193]
[1759718815772,7.86550815,4525.9,4525.8,23.59943193]
[1759718815940,7.86550815,4525.9,4525.8,28.46476193]
[1759718816146,7.86550815,4525.9,4525.8,33.27376193]
[1759718816147,8.30460815,4525.9,4525.8,33.27376193]
[1759718816479,9.53460815,4525.9,4525.8,33.27376193]
[1759718817081,9.53460815,4525.9,4525.8,33.27276193]
[1759718817374,9.09550815,4525.9,4525.8,28.55020782]
[1759718817682,9.53460815,4525.9,4525.8,33.27276193]
[1759718817849,10.76460815,4525.9,4525.8,33.27276193]
[1759718818377,10.76460815,4525.9,4525.8,31.06320782]
[1759718818971,10.76460815,4525.9,4525.8,33.27276193]
[1759718819174,11.99460815,4525.9,4525.8,33.27276193]
[1759718819546,11.99460815,4525.9,4525.8,31.06320782]
[1759718820065,11.99460815,4525.9,4525.8,26.25520782]
[1759718820277,11.99460815,4525.9,4525.8,31.06320782]
[1759718820454,12.78550815,4525.9,4525.8,31.06320782]
[1759718820658,12.78550815,4525.9,4525.8,33.58913324]
[1759718821550,12.12329012,4525.9,4525.8,33.58913324]
[1759718821753,12.12329012,4525.9,4525.8,33.27276193]
[1759718822053,13.35329012,4525.9,4525.8,33.27276193]
[1759718823060,12.69107209,4525.9,4525.8,33.73746193]
[1759718823266,13.92107209,4525.9,4525.8,35.56172409]
[1759718823588,13.25885406,4525.9,4525.8,35.56172409]
[1759718823883,11.16193947,4525.9,4525.8,35.56172409]
[1759718824092,25.28587076,4527.1,4526.6,0.6336]
[1759718824262,25.28587076,4527.1,4527.0,5.61748357]
[1759718824594,25.28587076,4527.1,4527.0,38.13048357]
[1759718824758,25.28587076,4527.1,4527.0,52.63048357]
[1759718825083,25.28587076,4527.1,4527.0,53.29302847]
[1759718825285,24.92722529,4527.1,4527.0,53.29302847]
[1759718826005,26.15722529,4527.1,4527.0,23.29302847]
[1759718826489,26.15722529,4527.1,4527.0,53.29302847]
[1759718827055,26.15722529,4527.1,4527.0,54.36539063]
[1759718827056,20.72143281,4527.1,4527.0,54.36539063]
[1759718827250,21.9457181,4527.1,4527.0,54.36539063]
[1759718827475,21.28364183,4527.1,4527.0,54.36539063]
[1759718827984,20.62156556,4527.1,4527.0,54.36539063]
[1759718828186,19.95948929,4527.1,4527.0,51.69172222]
[1759718828355,19.24231359,4527.1,4527.0,50.86606006]
[1759718828555,20.92561359,4527.1,4527.0,50.86606006]
[1759718828773,20.92561359,4527.1,4527.0,55.58802847]
[1759718828972,20.92561359,4527.1,4527.0,23.37906006]
[1759718829374,20.92561359,4527.1,4527.0,55.58802847]
[1759718829801,20.47231359,4527.1,4527.0,55.58802847]
[1759718830003,21.70231359,4527.1,4527.0,25.58802847]
[1759718830409,21.70231359,4527.1,4527.0,55.58802847]
[1759718831195,22.93231359,4527.1,4527.0,55.58802847]
[1759718832104,22.43224754,4527.1,4527.0,55.58802847]
[1759718832790,23.66224754,4527.1,4527.0,55.58802847]
[1759718833201,23.66224754,4527.1,4527.0,55.69842847]
[1759718834035,24.89224754,4527.1,4527.0,55.69842847]
[1759718835319,25.76362389,4527.1,4527.0,55.69842847]
[1759718839822,55.06815597,4527.2,4527.1,54.88206126]
[1759718840018,54.40621848,4527.2,4527.1,54.88206126]
[1759718840347,53.90421264,4527.2,4527.1,54.88206126]
[1759718840640,52.80080515,4527.2,4527.1,54.88206126]
[1759718840832,53.36886766,4527.2,4527.1,54.88206126]
[1759718841216,52.70693017,4527.2,4527.1,54.88206126]
[1759718841416,52.70693017,4527.2,4527.1,56.64923227]
[1759718842313,53.93693017,4527.2,4527.1,56.64923227]
[1759718842513,53.85601117,4527.2,4527.1,56.64923227]
[1759718842915,53.30601117,4527.2,4527.1,60.62270582]
[1759718843345,37.59229665,4527.2,4527.1,60.62270582]
[1759718843545,38.82229665,4527.2,4527.1,60.62270582]
[1759718845044,40.05229665,4527.2,4527.1,60.62270582]
[1759718845250,40.05229665,4527.2,4527.1,30.62270582]
[1759718845470,40.05229665,4527.2,4527.1,60.62270582]
[1759718846473,41.28229665,4527.2,4527.1,60.62270582]
[1759718847280,40.84082765,4527.2,4527.1,60.62270582]
[1759718847880,42.07082765,4527.2,4527.1,57.3115987]
[1759718848079,41.03925304,4527.2,4527.1,57.3115987]
[1759718848472,27.13345481,4527.2,4527.1,57.3115987]
[1759718849395,27.64631842,4527.2,4527.1,57.3115987]
[1759718850190,27.20484942,4527.2,4527.1,57.3115987]
[1759718850557,27.20484942,4527.2,4527.1,57.3125987]
[1759718850750,28.43684942,4527.2,4527.1,57.3125987]
[1759718852180,29.44621942,4527.2,4527.1,57.3125987]
[1759718852595,5.77228142,4527.2,4527.1,50.6791447]
[1759718852974,42.653119,4529.4,4529.0,0.6336]
[1759718853180,42.653119,4529.4,4528.3,2.4]
[1759718853181,42.653119,4529.4,4529.2,3.0336]
[1759718853371,42.653119,4529.4,4529.3,23.138865]
[1759718853567,42.653119,4529.4,4529.3,37.638865]
[1759718854776,43.883119,4529.4,4529.3,37.638865]
[1759718854970,44.049519,4529.4,4529.3,37.638865]
[1759718855374,44.049519,4529.4,4529.3,39.932865]
[1759718856205,44.77762571,4529.4,4529.3,39.932865]
[1759718857208,44.61122571,4529.4,4529.3,42.14071168]
[1759718857376,45.84122571,4529.4,4529.3,42.14071168]
[1759718857577,45.84122571,4529.4,4529.3,39.932865]
[1759718858318,46.00762571,4529.4,4529.3,39.932865]
[1759718858806,47.23762571,4529.4,4529.3,39.932865]
[1759718859696,47.07122571,4529.4,4529.3,42.14071168]
[1759718859922,47.07122571,4529.4,4529.3,39.932865]
[1759718860223,48.30122571,4529.4,4529.3,42.80290705]
[1759718861094,48.30122571,4529.4,4529.3,40.59506037]
[1759718861520,49.69762571,4529.4,4529.3,39.932865]
[1759718861850,49.53122571,4529.4,4529.3,39.932865]
[1759718865740,53.22122571,4529.4,4529.3,42.25111168]
[1759718866644,52.71937581,4529.4,4529.3,42.56748299]
[1759718866847,53.94937581,4529.4,4529.3,43.02388299]
[1759718867002,47.7816768,4529.4,4529.3,43.02388299]
[1759718867840,47.7816768,4529.4,4529.3,42.56748299]
[1759718868221,49.0116768,4529.4,4529.3,43.02388299]
[1759718868856,49.0116768,4529.4,4529.3,44.35088299]
[1759718869013,49.0116768,4529.4,4529.3,45.30526691]
[1759718869364,42.83882985,4529.4,4529.3,49.14962383]
[1759718869648,42.77261814,4529.4,4529.3,49.37780332]
[1759718870057,42.11088069,4529.4,4529.3,45.4230464]
[1759718870214,39.35432594,4529.4,4529.3,43.6396464]
[1759718870413,35.30155948,4529.4,4529.3,48.04255814]
[1759718870814,35.86982203,4529.4,4529.3,48.04255814]
[1759718871029,35.86982203,4529.4,4529.3,47.58615814]
[1759718871256,34.26453512,4529.4,4529.3,48.04255814]
[1759718871853,34.26453512,4529.4,4529.3,47.81437865]
[1759718872411,35.49453512,4529.4,4529.3,46.75031649]
[1759718872813,35.49453512,4529.4,4529.3,43.26020475]
[1759718873846,36.72453512,4529.4,4529.3,43.26020475]
[1759718874763,36.72453512,4529.4,4529.3,42.80380475]
[1759718874968,36.72453512,4529.4,4529.3,43.26020475]
[1759718875171,37.95453512,4529.4,4529.3,43.26020475]
[1759718875640,37.95453512,4529.4,4529.3,43.5514956]
[1759718876254,37.95453512,4529.4,4529.3,43.0950956]
[1759718876737,39.18453512,4529.4,4529.3,33.39095807]
[1759718876957,39.35093512,4529.4,4529.3,37.55935807]
[1759718877155,39.35093512,4529.4,4529.3,39.95935807]
[1759718877351,39.18453512,4529.4,4529.3,39.76720475]
[1759718877566,39.18453512,4529.4,4529.3,42.80080475]
[1759718878170,40.41453512,4529.4,4529.3,42.80080475]
[1759718878972,40.41453512,4529.4,4529.3,40.59295807]
[1759718879177,40.58093512,4529.4,4529.3,40.70335807]
[1759718879474,41.81093512,4529.4,4529.3,40.70335807]
[1759718879837,41.81093512,4529.4,4529.3,35.26775807]
[1759718880042,41.81093512,4529.4,4529.3,23.076727]
[1759718880363,41.81093512,4529.4,4529.3,26.315721]
[1759718880566,41.81093512,4529.4,4529.3,26.949321]
[1759718880768,43.04093512,4529.4,4529.3,26.949321]
[1759718880977,43.04093512,4529.4,4529.3,29.807237]
[1759718881186,42.87453512,4529.4,4529.3,29.807237]
[1759718881377,42.87453512,4529.4,4529.3,32.30637453]
[1759718881585,42.87453512,4529.4,4529.3,32.62274584]
[1759718881883,42.87453512,4529.4,4529.3,25.26250884]
[1759718882080,42.87453512,4529.4,4529.3,42.85677384]
[1759718882281,44.10453512,4529.4,4529.3,42.85677384]
[1759718883290,44.10453512,4529.4,4529.3,40.041265]
[1759718883692,45.33453512,4529.4,4529.3,42.24911168]
[1759718884402,45.33453512,4529.4,4529.3,42.91129536]
[1759718885201,46.56453512,4529.4,4529.3,43.37619536]
[1759718885369,46.56453512,4529.4,4529.3,43.98385752]
[1759718886327,14.77,4529.9,4529.8,2.84120298]
[1759718886612,14.77,4529.9,4529.8,25.91876798]
[1759718887171,0.1664,4532.0,4530.8,2.84071574]
[1759718887367,0.1664,4532.0,4530.8,7.77078689]
[1759718887602,0.1664,4532.0,4530.8,25.80788074]
[1759718887980,0.1664,4531.8,4530.8,40.00938074]
[1759718888609,0.1664,4531.8,4530.8,40.45487347]
[1759718888901,0.1664,4532.1,4530.8,40.91977347]
[1759718889411,1.24,4530.9,4530.8,41.52743563]
[1759718889724,0.57836471,4530.9,4530.8,41.52743563]
[1759718889882,0.57836471,4530.9,4530.8,41.76217068]
[1759718890099,0.1664,4532.5,4531.5,0.6336]
[1759718890289,0.1664,4532.5,4531.7,3.0336]
[1759718890489,0.1664,4532.5,4531.8,23.15793128]
[1759718890813,0.1664,4532.5,4531.8,23.135865]
[1759718890814,1.24,4531.9,4531.8,23.135865]
[1759718891000,1.4064,4531.9,4531.8,37.635865]
[1759718891514,1.4064,4531.9,4531.8,34.7703187]
[1759718892032,1.4064,4531.9,4531.8,36.8568187]
[1759718892236,2.6364,4531.9,4531.8,36.8568187]
[1759718892384,2.47,4531.9,4531.8,36.8568187]
[1759718892586,0.01,4532.9,4532.7,0.6336]
[1759718892891,0.01,4533.9,4533.6,0.6336]
[1759718893220,0.01,4533.9,4533.8,3.0336]
[1759718893419,0.01,4533.9,4533.8,36.10978484]
[1759718893759,0.57836471,4533.9,4533.8,38.08423884]
[1759718893922,0.57836471,4533.9,4533.8,43.20276251]
[1759718894091,2.20382248,4537.6,4533.8,43.20276251]
[1759718894092,0.4388,4537.5,4534.4,1.327]
[1759718894291,0.4388,4537.4,4536.7,0.11505855]
[1759718894487,0.4388,4537.4,4536.9,2.4]
[1759718894699,0.4388,4538.6,4537.2,0.6336]
[1759718894914,0.01000001,4541.9,4537.7,0.6336]
[1759718894915,0.4388,4538.5,4537.7,0.6336]
[1759718895100,0.4388,4539.0,4538.6,3.0336]
[1759718895427,0.4388,4539.0,4538.8,3.0336]
[1759718895594,0.4388,4539.0,4538.8,23.15689725]
[1759718895924,0.4388,4539.3,4538.8,37.634865]
[1759718896338,2.20214849,4541.1,4539.0,3.0336]
[1759718896492,2.20214849,4541.1,4538.8,17.007]
[1759718896493,2.20302965,4539.3,4539.2,2.4]
[1759718896692,0.22030297,4539.3,4539.2,4.907]
[1759718896927,0.4388,4539.3,4539.2,4.907]
[1759718897127,0.4388,4539.3,4539.2,2.6174]
[1759718897392,0.4388,4539.3,4539.2,2.507]
[1759718897586,0.4388,4539.3,4539.2,3.5854005]
[1759718897791,0.4388,4539.3,4539.2,23.5796655]
[1759718898190,0.4388,4539.3,4539.2,38.0796655]
[1759718898391,0.4388,4539.3,4539.2,34.2987465]
[1759718898691,0.4388,4539.3,4539.2,35.1706835]
[1759718898905,0.4388,4539.3,4539.2,34.4748535]
[1759718899106,1.6688,4539.3,4539.2,34.4748535]
[1759718899403,0.73553934,4539.3,4539.2,33.7540955]
[1759718899615,0.56865934,4539.3,4539.2,33.7540955]
[1759718899824,0.56865934,4539.3,4539.2,38.0796655]
[1759718900027,2.46,4542.2,4539.4,0.6336]
[1759718900237,0.4388,4541.2,4539.6,3.0336]
[1759718900405,0.4388,4541.2,4539.2,0.9097005]
[1759718900406,0.4388,4541.2,4539.8,3.0336]
[1759718900601,0.4388,4541.2,4540.8,17.5336]
[1759718900834,0.4388,4541.2,4540.8,37.632865]
[1759718901038,0.4488,4540.9,4540.8,37.632865]
[1759718901446,0.4488,4540.9,4540.8,36.999265]
[1759718901955,3.88100661,4540.9,4540.8,17.005]
[1759718902159,2.06690066,4540.9,4540.8,17.005]
[1759718902322,1.6788,4540.9,4540.8,19.405]
[1759718902968,3.88100661,4540.9,4540.8,14.5]
[1759718903141,5.11100661,4540.9,4540.8,17.005]
[1759718904662,6.34100661,4540.9,4540.8,17.005]
[1759718905140,4.1388,4540.9,4540.8,17.005]
[1759718905525,4.55268,4540.9,4540.8,17.005]
[1759718905939,7.57100661,4540.9,4540.8,2.505]
[1759718906148,5.3688,4540.9,4540.8,2.505]
[1759718906356,7.57100661,4540.9,4540.8,17.005]
[1759718906962,4.93,4540.9,4540.8,19.405]
[1759718907165,6.16,4540.9,4540.8,19.405]
[1759718908524,6.16,4540.9,4539.8,0.001]
[1759718908525,6.776,4540.9,4539.8,0.001]
[1759718908853,1.44,4540.8,4539.9,8.007888]
[1759718909053,7.39,4540.9,4540.1,2.4]
[1759718909380,7.39,4540.9,4539.8,0.001]
[1759718909381,5.62798471,4540.9,4540.3,2.4]
[1759718909679,2.76422206,4540.9,4540.8,19.7358551]
[1759718909828,2.76422206,4540.9,4540.8,40.2980201]
[1759718910173,3.33395413,4540.9,4540.8,38.095765]
[1759718910531,2.6736862,4540.9,4540.8,38.095765]
[1759718910930,2.6736862,4540.9,4540.8,37.630865]
[1759718911172,2.6736862,4540.9,4540.8,35.127865]
[1759718911372,3.24341827,4540.9,4540.8,42.5870201]
[1759718911675,2.58315034,4540.9,4540.8,42.5870201]
[1759718911842,0.01000001,4541.9,4540.8,40.384765]
[1759718912030,1.985,4544.2,4540.9,3.17688516]
[1759718912233,0.01,4546.9,4545.6,4.3436]
[1759718912527,0.56973207,4546.4,4546.3,2.47]
[1759718912742,0.56973207,4546.4,4546.3,5.01087738]
[1759718912942,0.01,4546.9,4546.3,4.903]
[1759718913159,0.134,4546.9,4546.7,14.5]
[1759718913462,0.01,4546.9,4546.8,1.58432812]
[1759718913636,2.19927188,4547.0,4546.8,4.08732812]
[1759718913957,1.19,4547.2,4546.9,4.08632812]
[1759718914157,3.38920279,4547.2,4547.0,4.08632812]
[1759718914330,3.38920279,4547.2,4546.7,14.5]
[1759718914331,3.38920279,4547.2,4547.1,4.08632812]
[1759718914526,1.619,4547.2,4547.1,4.08632812]
[1759718914744,1.19,4547.2,4547.1,4.08632812]
[1759718914928,1.19,4547.2,4547.1,17.97059312]
[1759718915131,0.53066224,4547.2,4547.1,21.00419312]
[1759718915331,0.53066224,4547.2,4547.1,34.87059312]
[1759718915551,0.95966224,4547.2,4547.1,23.87826412]
[1759718915939,3.14662846,4547.2,4547.1,16.08432812]
[1759718916140,3.14662846,4547.2,4547.1,4.08532812]
[1759718916574,2.18966224,4547.2,4547.1,4.08532812]
[1759718917267,3.41966224,4547.2,4547.1,4.08532812]
[1759718917462,3.41966224,4547.2,4547.1,4.19492812]
[1759718917690,3.41966224,4547.2,4547.1,1.69392812]
[1759718917976,2.19920388,4547.1,4545.6,0.4418425]
[1759718918145,2.19987217,4545.8,4545.7,1.939]
[1759718918348,0.429,4545.8,4545.7,1.939]
[1759718918651,1.23,4545.8,4545.7,2.0486]
[1759718918851,1.23,4545.8,4545.7,18.856865]
[1759718919379,1.23,4545.8,4545.7,35.08284169]
[1759718919380,0.57039695,4545.8,4545.7,35.08284169]
[1759718919675,2.99066224,4547.2,4545.8,3.0336]
[1759718919876,2.99066224,4547.2,4545.7,32.04924169]
[1759718919877,0.429,4547.1,4546.0,3.0336]
[1759718920093,0.429,4547.0,4546.2,2.4]
[1759718920377,2.19951049,4546.5,4546.3,2.501]
[1759718920540,2.19949411,4546.5,4546.4,2.501]
[1759718920745,2.19949411,4546.5,4546.4,1.551]
[1759718921078,0.429,4546.5,4546.4,1.551]
[1759718921372,1.23,4546.5,4546.4,1.551]
[1759718921777,1.782,4546.5,4545.5,0.43529681]
[1759718921951,1.782,4546.5,4545.2,14.5]
[1759718921952,2.1998812,4545.7,4545.6,2.5]
[1759718922273,0.429,4545.7,4545.6,2.5]
[1759718922477,2.6288812,4545.7,4545.6,2.5]
[1759718922677,3.8588812,4545.7,4545.6,2.5]